Cogmind - Beta 12 X6 @@@ ROGUE MODE // 2023.02.23 @ 10:22:02 Player: ArabianSandBoa Result: Self-destructed Performance ------------- Evolutions (2) 1000 Regions Visited (8) 1600 Robots Destroyed (148) 740 Value Destroyed (5002) 5002 Prototype IDs (32) 640 Alien Tech Used (0) 0 Bonus (291) 291 TOTAL SCORE: 9273 Bonus ------- High Alert Combat Kills 1188 Follower Combat Kills 21 Entered Garrisons 200 Aligned with FarCom 300 Friendly Fire -1418 Cogmind --------- Core Integrity 206/550 Matter 25/300 Energy 315/315 System Corruption 2% Temperature Cool (0) Movement Rolling (150) Ox4 Location -8/Garrison Parts ------- > --- POWER (1) -------- Neutrino Core > --- PROPULSION (2) --- Wheel Compact Wheel > --- UTILITY (6) ------ Improved Cooling System Huge Storage Unit Improved Transmission Jammer Hardened Heavy Armor Plating > --- WEAPON (2) ------- Heavy Assault Cannon > --- INVENTORY (25) --- Micro Fission Core Improved Medium Treads Compact Wheel Huge Storage Unit YI-UF0's Bottomless Matter Pit (837) Experimental Sensor Array Target Analyzer Launcher Loader Cloak of Protection Thermal Shield Advanced Shield Generator Point Defense System Improved Component Analysis Suite Tesla Rifle Thermic Laser Thermic Laser Disruptor Cannon Advanced Plasma Cannon Heavy Missile Launcher Heavy Missile Launcher Thermoblaster Remote Datajack Plasma Cutter Katana Peak State ------------ > --- POWER ------------ Neutrino Core > --- PROPULSION ------- Wheel Compact Wheel > --- UTILITY ---------- Improved Cooling System Huge Storage Unit Improved Kinecellerator Improved Transmission Jammer Hardened Heavy Armor Plating > --- WEAPON ----------- Tesla Rifle > --- INVENTORY -------- Micro Fission Core Improved Medium Treads Compact Wheel Huge Storage Unit YI-UF0's Bottomless Matter Pit Experimental Sensor Array Target Analyzer Launcher Loader Cloak of Protection Thermal Shield Advanced Shield Generator Point Defense System Improved Component Analysis Suite Thermic Laser Thermic Laser Disruptor Cannon Advanced Plasma Cannon Heavy Assault Cannon Heavy Missile Launcher Thermoblaster Remote Datajack Plasma Cutter Katana [Rating: 51] Favorites ----------- Power Light Nuclear Core Engine Makeshift Power Source Power Core Light Nuclear Core Propulsion Compact Wheel Treads Light Treads Leg Aluminum Leg Wheel Compact Wheel Utility Huge Storage Unit Device Hardlight Generator Storage Huge Storage Unit Processor Improved Targeting Computer Hackware Hacking Suite Protection Hardened Heavy Armor Plating Weapon Heavy Assault Cannon Energy Gun Heavy EM Shotgun Energy Cannon Advanced Beam Cannon Ballistic Gun Autogun Ballistic Cannon Heavy Assault Cannon Launcher Heavy Missile Launcher Special Weapon Mining Laser Build | -11 -10 -10 -9 -9 -9 -8 -8 -8 ------- Run | Jun Mat Min Mat Min Exi Min Mat Gar Slots Evolved 4 | . . . 2 . . . 2 . Power . | . . . . . . . . . Propulsion . | . . . . . . . . . Utility 4 | . . . 2 . . . 2 . Weapon . | . . . . . . . . . Parts Attached 128 | 5 16 7 40 5 . 2 13 40 Power 14 | 1 1 1 5 1 . . 1 4 Engine 9 | 1 1 1 2 1 . . 1 2 Core 5 | . . . 3 . . . . 2 Reactor . | . . . . . . . . . Propulsion 18 | 2 2 . 10 1 . . 2 1 Treads 1 | . . . 1 . . . . . Leg . | . . . . . . . . . Wheel 17 | 2 2 . 9 1 . . 2 1 Hover . | . . . . . . . . . Flight . | . . . . . . . . . Utility 41 | 1 2 2 13 1 . . 8 14 Device 20 | 1 . 1 7 . . . 3 8 Storage 3 | . 1 1 . . . . . 1 Processor 4 | . 1 . 1 1 . . 1 . Hackware 2 | . . . 2 . . . . . Protection 12 | . . . 3 . . . 4 5 Artifact . | . . . . . . . . . Weapon 55 | 1 11 4 12 2 . 2 2 21 Energy Gun 17 | 1 2 1 5 . . 2 1 5 Energy Cannon 3 | . . . 3 . . . . . Ballistic Gun 16 | . 5 3 4 1 . . . 3 Ballistic Cannon 7 | . 1 . . . . . 1 5 Launcher 7 | . . . . . . . . 7 Special Weapon 5 | . 3 . . 1 . . . 1 Impact Weapon . | . . . . . . . . . Slashing Weapon . | . . . . . . . . . Piercing Weapon . | . . . . . . . . . Special Melee Weapon . | . . . . . . . . . Unidentified Prototypes 3 | . . 1 2 . . . . . Corrupted Parts 2 | . . 2 . . . . . . System Corruption 10 | . . 10 . . . . . . Parts Lost 27 | . 3 2 9 . . . 2 11 Power 6 | . . 1 1 . . . . 4 Propulsion 7 | . 1 . 4 . . . 1 1 Utility 5 | . . . 2 . . . . 3 Weapon 9 | . 2 1 2 . . . 1 3 Highest Loss Streak 6 | . 1 2 3 . . . 2 6 To Critical Strikes 2 | . . . 2 . . . . . Average Slot Usage (%) 90 | . 99 97 95 99 77 97 96 81 Engine 6 | . 14 13 4 6 11 11 9 1 Core 3 | . . . 5 4 . . . 5 Wheel 20 | . 27 28 18 22 22 22 17 17 Device 9 | . . . 8 11 11 11 11 14 Storage 10 | . 14 14 11 11 11 11 9 9 Processor 6 | . 13 14 1 7 11 11 8 6 Hackware 8 | . . . 17 11 11 11 9 6 Protection 6 | . . . 4 3 . . 15 9 Energy Gun 5 | . 12 2 6 . . 19 14 2 Energy Cannon 1 | . . . 5 . . . . . Ballistic Gun 5 | . 9 23 10 19 . . . 1 Ballistic Cannon 2 | . 1 . . . . . 1 6 Naked Turns . | . . . . . . . . . Heaviest Build 134 | 15 89 95 103 103 89 97 113 134 Greatest Support 32 | 26 32 32 32 26 26 26 32 32 Greatest Overweight (x) 30 | . 5 2 30 5 3 3 6 10 Average Overweight (x) 3 | . 2 2 4 3 3 3 3 4 Largest Inventory Capacity 25 | 8 25 25 25 25 25 25 25 25 Average Capacity 24 | 8 23 25 25 25 25 25 25 25 Most Carried 25 | 8 19 24 25 25 25 25 25 25 Average Carried 21 | 6 11 21 23 24 24 23 23 22 Final Capacity 25 | 8 25 25 25 25 25 25 25 25 Final Carried 25 | 6 19 21 24 25 25 23 25 25 Class Distribution -------------------- 62% | Scavenger-Mutant 34% | Mutant 3% | Hacker-Mutant Dominant Class ---------------- Mutant | -10/Materials Mutant | -10/Mines Scavenger-Mutant | -9/Materials Scavenger-Mutant | -9/Mines Scavenger-Mutant | -9/Exiles Scavenger-Mutant | -8/Mines Scavenger-Mutant | -8/Materials Scavenger-Mutant | -8/Garrison Resources | -11 -10 -10 -9 -9 -9 -8 -8 -8 ----------- Run | Jun Mat Min Mat Min Exi Min Mat Gar Matter Collected 5226 | 240 213 62 1671 218 . . 337 2485 Remotely . | . . . . . . . . . Salvage Created 5113 | 105 658 206 1997 196 . 60 618 1273 Parts 309 | 10 52 6 128 12 . 8 33 60 Haulers Intercepted 9 | . 2 . 5 . . . 2 . Recyclers Shooed 3 | . 2 . 1 . . . . . Parts Field Recycled . | . . . . . . . . . Retrieved Matter . | . . . . . . . . . Parts Self-Destructed . | . . . . . . . . . Prevented . | . . . . . . . . . Kills | -11 -10 -10 -9 -9 -9 -8 -8 -8 ------- Run | Jun Mat Min Mat Min Exi Min Mat Gar Combat Hostiles Destroyed 108 | . 11 2 33 . . 3 13 46 Guns 52 | . 9 2 23 . . 3 5 10 Cannons 36 | . . . 10 . . . 4 22 AOE 18 | . 2 . . . . . 2 14 Classes Destroyed 16 | 2 6 . 3 1 . . . 4 Worker 8 | . 3 . 5 . . . . . Builder 2 | . . . 2 . . . . . Tunneler 2 | 2 . . . . . . . . Hauler 9 | . 2 . 5 . . . 2 . Recycler 6 | 1 2 . 2 1 . . . . Operator 3 | . 2 . 1 . . . . . Watcher 7 | . 2 . 3 . . . 1 1 Swarmer 23 | . 9 . . . . 3 4 7 Grunt 54 | . 2 2 23 . . . 7 20 Brawler 1 | . . . 1 . . . . . Duelist 1 | . . . . . . . . 1 Sentry 15 | . . . 9 . . . 2 4 Hunter 5 | . . . . . . . . 5 Programmer 6 | . . . . . . . . 6 Behemoth 2 | . . . . . . . . 2 Zionite 1 | . . . . 1 . . . . Thug 2 | . . . . 1 . . . 1 Best Kill Streak 6 | 2 6 2 6 1 . 3 4 5 Combat Bots Only 5 | . 4 2 5 . . 3 4 5 Max Kills in Single Turn 2 | 1 1 1 2 1 . 2 2 2 Gunslinging 1 | . . . 1 . . . 1 . Exploded 2 | . 1 . . . . . 1 2 Melee . | . . . . . . . . . Uniques/NPCs Destroyed 1 | . . 1 . . . . . . YI-UF0 (-10/Mines) Combat | -11 -10 -10 -9 -9 -9 -8 -8 -8 -------- Run | Jun Mat Min Mat Min Exi Min Mat Gar Damage Taken 4904 | . 470 123 1681 . . 61 476 2093 Core 855 | . 108 29 353 . . 21 108 236 Absorbed by Shields 576 | . . . 24 . . 60 184 308 Redirected to Shielding 109 | . . . . . . . 17 92 Regen/Repaired (Parts) 129 | . . . 20 . . . 109 . Core Remaining (%) 50 | 100 . 45 . . . 6 . . Volleys Fired 561 | 6 70 19 131 23 . 6 30 276 Largest 2 | 2 2 2 2 2 . 2 2 2 Hottest 260 | 80 120 40 136 46 . 100 100 260 Shots Fired 787 | 12 120 25 245 28 . 10 44 303 Gun 439 | 12 102 25 170 8 . 10 30 82 Cannon 284 | . 3 . 75 . . . 14 192 Launcher 27 | . . . . . . . . 27 Special 37 | . 15 . . 20 . . . 2 Kinetic 391 | . 54 12 75 8 . . 14 228 Thermal 243 | . 15 . 170 20 . . . 38 Explosive 16 | . . . . . . . . 16 Electromagnetic 137 | 12 51 13 . . . 10 30 21 Robot Hit Streak 15 | 4 8 15 14 5 . 3 14 14 Robot Miss Streak 8 | 2 8 4 3 2 . 4 2 3 Penetration Max . | . . . . . . . . . Secondary Targets 10 | . 2 1 2 . . 1 1 3 Max Gunslinging Chain 1 | . 1 1 1 . . 1 1 1 Shots Hit Robots 424 | 7 57 19 162 17 . 6 34 122 Core Hits 221 | 4 32 8 77 8 . 3 20 69 Critical Kills 2 | . . 1 1 . . . . . Critical Parts Destroyed . | . . . . . . . . . Critical Strikes 23 | . 1 1 7 1 . . 1 12 Burn 7 | . . . 6 . . . . 1 Meltdown 1 | . . . 1 . . . . . Destroy 1 | . . 1 . . . . . . Blast 11 | . . . . . . . 1 10 Corrupt 2 | . 1 . . . . . . 1 Sever 1 | . . . . 1 . . . . Melee Attacks . | . . . . . . . . . Impact . | . . . . . . . . . Slashing . | . . . . . . . . . Piercing . | . . . . . . . . . Sneak Attacks . | . . . . . . . . . Combat Hostiles . | . . . . . . . . . Follow-up Attacks . | . . . . . . . . . Damage Inflicted 11877 | 136 761 188 2846 232 . 108 1202 6404 Guns 4143 | 88 562 188 1860 75 . 108 511 751 Cannons 5233 | . 20 . 986 . . . 584 3643 Explosions 2307 | 48 149 . . . . . 107 2003 Melee . | . . . . . . . . . Ramming 30 | . 30 . . . . . . . Kinetic 5786 | . 268 78 734 75 . . 584 4047 Thermal 3089 | 48 149 . 2112 157 . . 107 516 Explosive 1537 | . . . . . . . . 1537 Electromagnetic 1435 | 88 314 110 . . . 108 511 304 Impact . | . . . . . . . . . Slashing . | . . . . . . . . . Piercing . | . . . . . . . . . Highest Corruption 10 | . . 10 10 10 10 10 . 2 Average Corruption 7 | . . 6 9 10 10 10 . 1 Corruption Purged . | . . . . . . . . . Corruption Blocked . | . . . . . . . . . Effects 112 | . . . 76 13 8 4 . 11 Message Errors 28 | . . . 19 2 2 . . 5 Matter Fused 27 | . . . 19 4 1 1 . 2 Heat Flow Errors 12 | . . . 9 1 2 . . . Energy Discharges 12 | . . . 7 2 2 1 . . Parts Rejected 3 | . . . 3 . . . . . Data Loss (minor) 9 | . . . 4 1 1 2 . 1 Data Loss (major) 8 | . . . 5 1 . . . 2 Misfires 3 | . . . 1 2 . . . . Alerts 2 | . . . 2 . . . . . Misdirections 2 | . . . 2 . . . . . Weapon Failures 6 | . . . 5 . . . . 1 Overload Shots . | . . . . . . . . . Overflow Damage 469 | . 8 . 20 . . . 74 367 Projectiles 435 | . . . 20 . . . 74 341 Explosions 34 | . 8 . . . . . . 26 Melee . | . . . . . . . . . Knockbacks 14 | . . . . . . . . 14 Impact . | . . . . . . . . . Kinetic 13 | . . . . . . . . 13 Secondary 1 | . . . . . . . . 1 Self-Inflicted Damage 289 | . 70 . . . . . 97 122 Shots 8 | . 2 . . . . . 3 3 Rammed 1 | . 1 . . . . . . . Targets Rammed 1 | . 1 . . . . . . . Kicked . | . . . . . . . . . Crushed . | . . . . . . . . . Highest Temperature 416 | 72 94 13 401 251 117 144 228 416 Average Temperature 82 | 27 27 8 104 84 59 87 88 85 Received Heat Transfer 1764 | . 48 69 760 . . . 223 664 Effects 6 | . . . 4 . . . . 2 Energy Bleed 2 | . . . 1 . . . . 1 Interference 3 | . . . 3 . . . . . Short Circuit 1 | . . . . . . . . 1 Siege Activations . | . . . . . . . . . Robots Corrupted 3 | . . 1 . . . . 2 . Combat Hostiles 2 | . . . . . . . 2 . Parts Fried 7 | . 1 3 . . . . 2 1 Impact Corruptions . | . . . . . . . . . Robots Melted 1 | . . . 1 . . . . . Combat Hostiles . | . . . . . . . . . Parts Melted 10 | . . . 10 . . . . . Heat Transferred 6763 | . 250 . 4630 518 . . 150 1215 Parts Sabotaged . | . . . . . . . . . Parts Stolen . | . . . . . . . . . Parts Stripped . | . . . . . . . . . Power Chain Reactions 8 | 1 3 . . . . . 3 1 Missiles Intercepted . | . . . . . . . . . Alert | -11 -10 -10 -9 -9 -9 -8 -8 -8 ------- Run | Jun Mat Min Mat Min Exi Min Mat Gar Peak Influence 3414 | 15 254 76 369 101 . 70 201 3414 Initial 96 | . 9 7 . 96 . . 27 31 Average 731 | 9 104 27 198 98 . 49 52 1614 Maximum Alert Level 5 | . 1 . 1 . . . 1 5 Low Security (%) 42 | 100 75 100 33 100 . 100 99 4 Level 1 24 | . 24 . 66 . . . . 16 Level 2 2 | . . . . . . . . 6 Level 3 3 | . . . . . . . . 8 Level 4 6 | . . . . . . . . 16 Level 5 19 | . . . . . . . . 47 High Security . | . . . . . . . . . Max Security . | . . . . . . . . . Squads Dispatched 8 | . 1 . 5 . . . 2 . Investigation 5 | . . . 4 . . . 1 . Extermination . | . . . . . . . . . Reinforcement 3 | . 1 . 1 . . . 1 . Assault . | . . . . . . . . . Garrison . | . . . . . . . . . Intercept . | . . . . . . . . . Searches Triggered . | . . . . . . . . . Construction Impeded . | . . . . . . . . . Haulers Reinforced . | . . . . . . . . . Active Scanning Responses . | . . . . . . . . . Cargo Convoy Interrupts . | . . . . . . . . . Stealth | -11 -10 -10 -9 -9 -9 -8 -8 -8 --------- Run | Jun Mat Min Mat Min Exi Min Mat Gar Distress Signals 5 | . . . 3 . . . 1 1 Communications Jammed . | . . . . . . . . . Distress Signals . | . . . . . . . . . Times Spotted 156 | . 27 2 50 . . 3 19 55 Peak Tracking Total 8 | . 5 2 8 . . 3 5 7 Tactical Retreats 12 | . 3 . 3 . . . . 6 Traps | -11 -10 -10 -9 -9 -9 -8 -8 -8 ------- Run | Jun Mat Min Mat Min Exi Min Mat Gar Traps Triggered 10 | . 1 . 4 . . . . 5 Indirectly . | . . . . . . . . . Trap Hack Attempts . | . . . . . . . . . Triggered . | . . . . . . . . . Disarmed 6 | . . . 6 . . . . . Reprogrammed . | . . . . . . . . . Reused . | . . . . . . . . . Traps Extracted . | . . . . . . . . . Installed . | . . . . . . . . . Triggered . | . . . . . . . . . Exploded 1 | . . . . . . . . 1 Machines | -11 -10 -10 -9 -9 -9 -8 -8 -8 ---------- Run | Jun Mat Min Mat Min Exi Min Mat Gar Machines Disabled 11 | . 1 . 1 . . . 2 7 Max in Single Turn 1 | . 1 . 1 . . . 1 1 Garrison Relay 3 | . . . . . . . . 3 Machines Repaired . | . . . . . . . . . Machines Sabotaged . | . . . . . . . . . Overloaded Fab Kills . | . . . . . . . . . Hacking | -11 -10 -10 -9 -9 -9 -8 -8 -8 --------- Run | Jun Mat Min Mat Min Exi Min Mat Gar Machines Accessed 28 | . 9 . 9 . 1 . 6 3 Terminals 21 | . 7 . 7 . . . 4 3 Fabricators . | . . . . . . . . . Repair Stations 2 | . . . 1 . . . 1 . Recycling Units 3 | . 2 . 1 . . . . . Scanalyzers . | . . . . . . . . . Garrison Access 1 | . . . . . . . 1 . Total Hacks 101 | . 24 . 47 . 1 . 23 6 Successful 64 | . 14 . 33 . 1 . 14 2 Failed 36 | . 10 . 13 . . . 9 4 Catastrophic 4 | . . . . . . . 1 3 Database Lockouts 1 | . . . 1 . . . . . Manual 38 | . 9 . 14 . 1 . 13 1 Terminals 77 | . 15 . 41 . . . 15 6 Fabricators . | . . . . . . . . . Repair Stations 6 | . . . 2 . . . 4 . Recycling Units 13 | . 9 . 4 . . . . . Scanalyzers . | . . . . . . . . . Garrison Access 4 | . . . . . . . 4 . Terminal Hacks 40 | . 7 . 25 . 1 . 5 2 Record 5 | . . . 5 . . . . . Robot Analysis 7 | . 2 . 2 . . . 3 . Prototype ID Bank 3 | . 1 . 1 . . . 1 . Open Door 1 | . . . . . . . . 1 Branch Access Points 1 | . . . 1 . . . . . Emergency Access Points 3 | . . . 2 . . . . 1 Alert Level 1 | . . . 1 . . . . . Unreport Threat 4 | . 2 . 2 . . . . . Locate Traps 1 | . . . 1 . . . . . Disarm Traps 2 | . . . 2 . . . . . Security Status 1 | . . . 1 . . . . . Transport Status 1 | . . . 1 . . . . . Investigation Status 1 | . . . 1 . . . . . Hauler Manifests 1 | . . . 1 . . . . . Registered Components 1 | . . . 1 . . . . . Zone Layout 6 | . 2 . 3 . . . 1 . EX-Prototype ID Bank 1 | . . . . . 1 . . . Fabricator Hacks . | . . . . . . . . . Repair Station Hacks 6 | . . . 2 . . . 4 . Scan Component 3 | . . . 1 . . . 2 . Repair 3 | . . . 1 . . . 2 . Recycling Unit Hacks 3 | . 2 . 1 . . . . . Report Inventory 3 | . 2 . 1 . . . . . Scanalyzer . | . . . . . . . . . Garrison Access Hacks 1 | . . . . . . . 1 . Unlock Access 1 | . . . . . . . 1 . Unauthorized Hacks 14 | . 5 . 5 . . . 4 . Terminals 7 | . 1 . 2 . . . 4 . Botnet 6 | . 1 . 2 . . . 3 . Disrupt 1 | . . . . . . . 1 . Fabricators . | . . . . . . . . . Repair Stations . | . . . . . . . . . Recycling Units 7 | . 4 . 3 . . . . . Monitor 2 | . 1 . 1 . . . . . Reject 3 | . 2 . 1 . . . . . Mask 1 | . 1 . . . . . . . Tunnel 1 | . . . 1 . . . . . Scanalyzers . | . . . . . . . . . Garrison Access . | . . . . . . . . . Data Cores Recovered 1 | . 1 . . . . . . . Used 1 | . 1 . . . . . . . Hacking Detections 23 | . 7 . 8 . . . 6 2 Full Trace Events 5 | . . . 3 . . . 1 1 Feedback Events . | . . . . . . . . . Feedback Blocked . | . . . . . . . . . Robot Schematics Acquired . | . . . . . . . . . Robots Built . | . . . . . . . . . Authchips . | . . . . . . . . . Time . | . . . . . . . . . Total Robot Build Rating . | . . . . . . . . . Part Schematics Acquired . | . . . . . . . . . Parts Built . | . . . . . . . . . Authchips . | . . . . . . . . . Time . | . . . . . . . . . Total Part Build Rating . | . . . . . . . . . Parts Repaired 2 | . . . 1 . . . 1 . Time 130 | . . . 38 . . . 92 . Parts Recycled . | . . . . . . . . . Recycled Matter . | . . . . . . . . . Retrieved Matter . | . . . . . . . . . Retrieved Components . | . . . . . . . . . Parts Scanalyzed . | . . . . . . . . . Part Schematics Acquired . | . . . . . . . . . Parts Damaged . | . . . . . . . . . Bothacking | -11 -10 -10 -9 -9 -9 -8 -8 -8 ------------ Run | Jun Mat Min Mat Min Exi Min Mat Gar Used RIF Installer . | . . . . . . . . . Robots Hacked . | . . . . . . . . . Non-combat . | . . . . . . . . . Combat . | . . . . . . . . . Robot Hacks Applied . | . . . . . . . . . Relay Couplers Released 11 | . . . . . . . . 11 Machine Destruction 11 | . . . . . . . . 11 Fabnet Peak Effective % . | . . . . . . . . . Robots Rewired 2 | . . . . . . . . 2 Allies Hacked 1 | . . . . . . . . 1 Hacks Repelled . | . . . . . . . . . Allies | -11 -10 -10 -9 -9 -9 -8 -8 -8 -------- Run | Jun Mat Min Mat Min Exi Min Mat Gar Total Allies 7 | . . 3 . 2 . . . 2 Largest Group 3 | . . 3 1 2 . . . 2 Highest-Rated Group 62 | . . 40 16 44 . . . 62 Highest-Rated Ally 31 | . . 16 16 31 . . . 31 Total Orders . | . . . . . . . . . Ally Attacks 23 | . . 8 4 . . . . 11 Total Damage 250 | . . 82 40 . . . . 128 Kills 3 | . . 3 . . . . . . Allies Corrupted 1 | . . . . . . . . 1 Allies Melted . | . . . . . . . . . Intel | -11 -10 -10 -9 -9 -9 -8 -8 -8 ------- Run | Jun Mat Min Mat Min Exi Min Mat Gar Robot Analysis Total 7 | . 2 . 2 . . . 3 . Derelict Logs Recovered . | . . . . . . . . . Drone Launches . | . . . . . . . . . Drone Recoveries . | . . . . . . . . . Exploration | -11 -10 -10 -9 -9 -9 -8 -8 -8 ------------- Run | Jun Mat Min Mat Min Exi Min Mat Gar Turns Passed 10756 | 69 1267 571 2357 371 288 88 1457 4288 Spaces Moved 5194 | 22 740 382 1058 188 213 42 469 2080 Core 3 | . . . 3 . . . . . Treads . | . . . . . . . . . Legs . | . . . . . . . . . Wheels 5191 | 22 740 382 1055 188 213 42 469 2080 Hover . | . . . . . . . . . Flight . | . . . . . . . . . Fastest Speed 90 | 90 90 130 130 135 135 135 135 135 Average Speed 144 | 90 127 130 153 141 135 135 145 151 Slowest Speed 1550 | 90 175 130 1550 155 135 135 190 230 Overloaded Moves . | . . . . . . . . . Propulsion Burnouts . | . . . . . . . . . Robots Hopped . | . . . . . . . . . Cave-ins Triggered . | . . . . . . . . . Exploration Rate (%) 57 | 2 99 68 81 61 59 24 27 99 Regions Visited 8 Branch Regions 4 Pre-discovered Areas 1 | . . . 1 . . . . . Known Exits Taken 2 | . . . 1 . . . 1 . Unknown Exits Taken 6 | 1 1 1 . 1 1 1 . . Scrap Searched 2 | . . 1 . 1 . . . . Spaces Dug 83 | . 11 . . . . . . 72 Terrain Destroyed 380 | 4 31 . . . . . 18 327 Melee . | . . . . . . . . . Projectile 149 | . 12 . . . . . 8 129 AOE 231 | 4 19 . . . . . 10 198 Terrain Rammed . | . . . . . . . . . Walls Destroyed . | . . . . . . . . . Machines Disabled . | . . . . . . . . . Actions | -11 -10 -10 -9 -9 -9 -8 -8 -8 --------- Run | Jun Mat Min Mat Min Exi Min Mat Gar Total 7533 | 59 919 433 1566 251 214 63 1191 2837 Wait 1375 | 17 80 17 247 20 . 14 666 314 Move 5186 | 21 739 381 1057 187 212 41 468 2080 Hop . | . . . . . . . . . Pick Up 108 | 5 9 6 46 5 1 . 8 28 Fast Attach 33 | 1 5 1 14 2 . . 2 8 Attach 47 | 1 1 2 13 1 . 2 7 20 Detach 23 | . 2 1 4 3 . . 2 11 Swap 48 | 3 10 4 13 2 . . 4 12 Drop 91 | 5 2 2 41 8 1 . 4 28 Fire 561 | 6 70 19 131 23 . 6 30 276 Melee . | . . . . . . . . . Ram 1 | . 1 . . . . . . . Kick . | . . . . . . . . . Crush . | . . . . . . . . . Escape Stasis 40 | . . . . . . . . 40 Rewire 20 | . . . . . . . . 20 Trap . | . . . . . . . . . Miscellaneous . | . . . . . . . . . Route ------- -11/Junkyard -10/Materials (discovered 4 exits: *Mat x3 / [*Min]) -10/Mines -9/Materials (discovered 4 exits: *Mat x3 / *Min) -9/Mines -9/Exiles -8/Mines -8/Materials -8/Garrison (discovered 3 exits: [*Mat x3]) History --------- Turn | Location | Event 6 | -11/Junkyard | Discovered new exit (range 2) 70 | -11/Junkyard | Entered Materials 315 | -10/Materials | Build established: Mutant 342 | -10/Materials | Discovered new exit (range 16) 438 | -10/Materials | Discovered new exit (range 12) 919 | -10/Materials | Discovered new exit (range 16) 1048 | -10/Materials | Discovered new exit (range 8) 1337 | -10/Materials | Entered Mines 1350 | -10/Mines | Core integrity fell below 50% 1451 | -10/Mines | Found a damaged Exp. Sensor Array with a note attached 1454 | -10/Mines | Found Prototype Device 1489 | -10/Mines | Assisted by bots powering up and referring to "LRC-V3" 1573 | -10/Mines | YI-UF0 nonchalantly dropped a Grenade Launcher on the ground 1616 | -10/Mines | Destroyed YI-UF0 1622 | -10/Mines | Found Corrupted Prototype Storage 1741 | -10/Mines | Discovered new exit (range 7) 1907 | -10/Mines | Identified YI-UF0's Bottomless Matter Pit 1908 | -10/Mines | System corruption reached 10% 1908 | -10/Mines | Entered Materials 1908 | -9/Materials | Accompanied by 1 ally 1908 | -9/Materials | Evolved 2 slots: Utility x2 2200 | -9/Materials | Build established: Scavenger-Mutant 2403 | -9/Materials | System corruption reached 10% 2433 | -9/Materials | Lost 3 parts (1n1u1w) 2449 | -9/Materials | Discovered new exit (range 14) 2599 | -9/Materials | Discovered new exit (range 16) 2692 | -9/Materials | Core integrity fell below 50% 2943 | -9/Materials | Identified exit to Mines 3251 | -9/Materials | Central database locked down 3293 | -9/Materials | Core integrity fell below 20% 3551 | -9/Materials | Discovered new exit (range 16) 3889 | -9/Materials | Repaired Lgt. Nuclear Core 4097 | -9/Materials | Discovered new exit (range 16) 4265 | -9/Materials | Entered Mines 4604 | -9/Mines | Assembled infested the area 4629 | -9/Mines | Discovered new exit (range 5) 4636 | -9/Mines | Entered Exiles 4669 | -9/Exiles | Met 8R-AWN 4692 | -9/Exiles | Met EX-HEX 4731 | -9/Exiles | Met EX-BIN 4746 | -9/Exiles | Aligned with FarCom system 4747 | -9/Exiles | Given EX-Vault access code 4784 | -9/Exiles | Opened EX-Vault 4794 | -9/Exiles | Found Cloak of Protection 4823 | -9/Exiles | Warned to stay clear of 0b10 Research branches 4862 | -9/Exiles | Met EX-DEC 4907 | -9/Exiles | Discovered new exit (range 14) 4924 | -9/Exiles | Left Exiles lab with Cloak of Protection 4924 | -9/Exiles | Entered Mines 5005 | -8/Mines | Discovered new exit (range 6) 5012 | -8/Mines | Entered Materials 5012 | -8/Materials | Evolved 2 slots: Utility x2 5043 | -8/Materials | Identified exit to Garrison 6129 | -8/Materials | Repaired Med. Armor Plating 6469 | -8/Materials | Entered Garrison 6611 | -8/Garrison | Lost 6 parts (1p1n2u2w) 6718 | -8/Garrison | Triggered checkpoint 6756 | -8/Garrison | Core integrity fell below 50% 6804 | -8/Garrison | Triggered checkpoint 6925 | -8/Garrison | Met a derelict Sapper fleeing the area 6987 | -8/Garrison | Discovered new exit (range 3) 7134 | -8/Garrison | Spotted B-75 Beast 7134 | -8/Garrison | Spotted B-75 Beast 7278 | -8/Garrison | Discovered new exit (range 14) 7455 | -8/Garrison | Garrison Relay disabled 7843 | -8/Garrison | Garrison Relay disabled 8024 | -8/Garrison | Discovered new exit (range 8) 8282 | -8/Garrison | Garrison Relay disabled 8676 | -8/Garrison | Destroyed B-75 Beast 8737 | -8/Garrison | Destroyed B-75 Beast 8798 | -8/Garrison | Found Launcher Loader 9078 | -8/Garrison | Build established: Mutant 9090 | -8/Garrison | P-60 Hacker assimilated allied AN-5HN(g) 10757 | -8/Garrison | Self-destructed Last Messages --------------- 10219_ Slug penetrates Wall. 10231_ 4QIZH7M%S7GXSYXH8BC7<% YCUEVD2 10248_ N| YOZ2QAGIECGVPK%PVU4 GX2PWDKXP 10359_ Acquired 20 matter. 10368_ Slug penetrates Wall. 10369_ ALERT: Garrison interior compromised. 10409_ System corrupted: Hvy. Assault Cannon jammed. 10412_ Slug penetrates Wall. 10486_ System corrupted: Matter fused (-6). 10519_ ALERT: Garrison interior compromised. 10546_ Slug penetrates Wall. 10594_ Acquired 55 matter. 10595_ Acquired 25 matter. 10598_ G= Z&CXJ3OQMPAMJCCXOOPJ/ 10598_ Acquired 3 matter. 10601_ Acquired 5 matter. 10603_ Slug penetrates Wall. 10669_ ALERT: Garrison interior compromised. 10748_ System corrupted: Matter fused (-9). 10754_ Slug penetrates Wall. Map ----- +----------------------------------------------------+ | #^^ ## # [ ## # %#?# ### ##???# !#??????????? | | # ##"####% # "#?# #?# "#???# #??????????? | | # ## #?## # "#?# #?# "#???# !#??????????? | | " #?## #### ###"##???# ##??#######?? | | # ####?# ## ## ## #####!###?#"""""#?? | | # #????# # # ## ##"## #"####=%%#### | | # #???#### !%= " | | #???# = =%[ # | | #???## # ## # ###"#################"## | | #????# # # # # ##" #???????????????# #? | | ##++#????# # # ## # ###=#???????????????# #? | | ## ###?#### # ## #?#=#???????????????# #? | | ""#?#! # ######### ###"#################=## | | !"#?# [#??????# * !=" | | !"#?# ! #??????# ^ !! # | | !"#?# !#??????# "# ##### ###### !!#### | | !"#?# ]!#?????## ## #???# #???# #?? | | !"#?# ! #??????; ;##"##???# ##??#######?? | | !"#?# !!#??????; #?# #????# !#??????????? | | ""#?#% !#??????# #?# #????# !#??????????? | | !!!"""#?########??????# #?# #???## !#??????????? | | """"""#??????????????## ### ##??#" ##??????????? | | #####????????????????#; ; "##### "#####??????? | | ?????????????????????## #####"""" #??????? | | ??????????????????????# ##??##" ! "#??????? | | ??????????????????????# @;#???## =%! ="#??????? | | ??????????????????????# ##????# = !%"#??????? | | ??????????????????????# ###??## """[%#??????? | | ??????????????????????# ##?#" #####"#?????? | | ??????????????????????# < "#?#" """"###?????? | | ??????????????????????# ##?#"" "#???????? | | ??????????????????????#######??#""" " ""#???????? | | ???????????????????????????????###########???????? | | ?????????????????????????????????????????????????? | | ?????????????????????????????????????????????????? | | ?????????????????????????????????????????????????? | | ?????????????????????????????????????????????????? | | ?????????????????????????????????????????????????? | | ?????????????????????????????????????????????????? | | ?????????????????????????????????????????????????? | | ?????????????????????????????????????????????????? | | ?????????????????????????????????????????????????? | | | | | | | | | | | | | | | | | +----------------------------------------------------+ Best States ------------- Heat Dissipation 58 Energy Generation 19 Energy Capacity 315 Matter Stores 300 Matter Capacity 1800 Sight Range 16 Terrain Scan Range 16 Terrain Scan Density 10 Jamming Range 14 Cloak Strength 5 Additional Mass Support 6 Armor Coverage 600 Resistance: TH 20 Utility Shielding 66 Weapon Shielding 33 Evasion (%) 42 Targeting Accuracy 6 Kinecelleration 40 Salvage Targeting 1 Offensive Hacking 20 Item Schematics ----------------- None Robot Schematics ------------------ None Fabricated ------------ Nothing Alien Tech Used ----------------- None Achievements -------------- None Challenges ------------ None Game ------ Seed BeamNullSword Manual? 1 Play Time 09:08:08 Cumulative 375.8 hours Start 2023.02.22 @ 22:05:52 End 2023.02.23 @ 10:22:02 Sessions 5 Manual Loads 0 Difficulty Rogue Special Mode None Game No. 424 Rogue 424 Adventurer 0 Explorer 0 Win Type - Total 0 Types 0/0/0/0/0/0/0/0/0 Lore% 51 Gallery% 74 Achievement% 61 Wizard Run 0 Options --------- ASCII 0 Keyboard 0 Movement Mouse Keybinds 0 Fullscreen 2 Font 24/Smallcaps Map View 76x50 Tactical HUD 1 Map Filters NONE Filters NONE Steam 1 RUN: 638dd6b6-dcc0-428b-a4b4-4d23c1b45ca3